bitfinex-derivatives/quotes_ETHF0:USTF0_20240923
["timestamp","ask_amount","ask_price","bid_price","bid_amount"]
[1727100208519,0.7561,2647.0,2646.8,0.37786]
[1727100208915,0.7561,2647.0,2646.1,3.2078]
[1727100209215,3.2078,2647.1,2647.0,0.37784]
[1727100210006,3.2078,2647.1,2646.4,1.69061]
[1727100210316,3.2078,2647.1,2646.7,0.94467]
[1727100210617,3.2078,2647.1,2646.4,6.0136]
[1727100210618,0.7561,2647.3,2646.6,0.94474]
[1727100210909,0.7561,2647.3,2647.1,0.37782]
[1727100211144,0.7561,2647.3,2647.0,0.37783]
[1727100211318,0.7561,2647.3,2646.4,3.75061]
[1727100211319,0.7561,2647.3,2646.9,0.37784]
[1727100211521,2.06,2647.2,2647.0,0.37784]
[1727100211913,3.2078,2647.1,2647.0,0.37784]
[1727100212217,3.2078,2647.1,2646.9,0.37784]
[1727100212909,3.2078,2647.1,2647.0,0.37784]
[1727100213111,0.7561,2647.3,2646.7,0.94471]
[1727100213307,0.7561,2647.3,2647.2,0.37781]
[1727100213512,2.06,2647.6,2646.7,0.18856226]
[1727100213513,2.06,2647.6,2647.4,0.37778]
[1727100213820,2.06,2647.6,2647.3,0.37779]
[1727100214010,2.06,2647.6,2647.0,2.5012]
[1727100214213,2.06,2647.3,2647.1,0.37782]
[1727100214510,2.06,2647.3,2647.0,1.15043]
[1727100214711,0.8004,2647.2,2647.1,0.37781]
[1727100214917,4.0082,2647.2,2647.1,0.37781]
[1727100216013,0.8004,2647.2,2647.1,0.37781]
[1727100216521,4.0082,2647.2,2647.1,0.37781]
[1727100216814,0.8004,2647.2,2647.1,0.37781]
[1727100217221,4.0082,2647.2,2647.1,0.37781]
[1727100218714,0.8004,2647.2,2647.1,0.37781]
[1727100218916,3.2078,2647.5,2647.0,0.7726]
[1727100219116,3.2078,2647.5,2647.4,0.37778]
[1727100221022,5.2678,2647.5,2647.4,0.37778]
[1727100221317,5.2678,2647.5,2647.2,0.3778]
[1727100221518,2.06,2647.3,2647.2,0.3778]
[1727100221706,2.06,2647.3,2647.0,0.7726]
[1727100221707,2.06,2647.3,2647.1,0.37781]
[1727100221907,2.06,2647.3,2647.2,0.37781]
[1727100222417,5.2678,2647.5,2647.0,1.71719]
[1727100222615,5.64557,2647.5,2647.2,0.3778]
[1727100222917,5.2678,2647.5,2647.0,1.71719]
[1727100223125,5.2678,2647.5,2647.0,0.7726]
[1727100223322,3.2078,2647.5,2647.4,0.37778]
[1727100224915,3.2078,2647.8,2647.7,0.37774]
[1727100225310,3.79937566,2648.1,2647.9,0.37771]
[1727100225512,4.19487566,2648.0,2647.9,0.37771]
[1727100226126,4.19487566,2648.0,2647.7,0.37773]
[1727100226321,2.06,2647.9,2647.7,0.37773]
[1727100226519,4.19487566,2648.0,2647.9,0.37771]
[1727100227221,4.19604608,2648.0,2647.7,0.7419]
[1727100227516,0.98824608,2647.9,2647.8,0.37772]
[1727100227724,0.98824608,2647.9,2647.7,0.7419]
[1727100227725,0.98824608,2647.9,2647.7,1.11963]
[1727100228219,0.98824608,2647.9,2647.8,0.37772]
[1727100230122,6.25604608,2648.0,2647.7,0.7419]
[1727100230419,6.25604608,2648.0,2647.7,0.37773]
[1727100230420,0.98824608,2647.9,2647.7,0.37773]
[1727100230618,1.36596608,2647.9,2647.5,0.37775]
[1727100230820,3.2078,2647.7,2647.5,0.37775]
[1727100231022,4.19604608,2647.7,2647.3,0.37779]
[1727100231219,2.06,2647.4,2647.3,0.37779]
[1727100231915,5.2678,2647.4,2647.3,0.37779]
[1727100232114,2.06,2647.4,2647.3,0.37779]
[1727100232316,2.07,2647.4,2647.3,0.37779]
[1727100233123,0.01,2647.4,2647.3,0.37779]
[1727100235625,0.01,2647.4,2647.3,1.32229]
[1727100235823,0.01,2647.4,2647.3,7.03331232]
[1727100236024,0.01,2647.4,2647.3,8.71068311]
[1727100236231,1e-05,2647.4,2647.3,16.77068311]
[1727100236432,1e-05,2647.4,2647.3,17.26379714]
[1727100236629,1e-05,2647.4,2647.3,8.71408455]
[1727100237227,1e-05,2647.4,2647.3,3.99198455]
[1727100237529,1e-05,2647.4,2647.3,2.310784]
[1727100237726,1e-05,2647.4,2647.3,3.49769203]
[1727100237922,1e-05,2647.4,2647.3,7.27529203]
[1727100238126,1e-05,2647.4,2647.3,8.7140469]
[1727100238318,1e-05,2647.4,2647.3,7.7695469]
[1727100238634,1e-05,2647.4,2647.3,8.7140469]
[1727100238823,1e-05,2647.4,2647.3,6.33121752]
[1727100239023,1e-05,2647.4,2647.3,5.14390988]
[1727100239424,1e-05,2647.4,2647.3,1.36630988]
[1727100239731,1e-05,2647.4,2647.3,0.37779]
[1727100240122,1e-05,2647.4,2647.1,1.16822]
[1727100240320,1e-05,2647.4,2646.7,8.204]
[1727100240321,4.19604608,2647.2,2646.7,1.73141988]
[1727100240532,2.06,2646.9,2646.7,0.7429]
[1727100240725,2.06,2646.9,2646.8,0.37787]
[1727100240924,2.06,2646.9,2646.6,0.98851988]
[1727100241122,0.809,2646.8,2646.5,1.73761988]
[1727100241337,0.809,2646.8,2646.7,0.37788]
[1727100241531,2.06,2646.9,2646.8,0.37787]
[1727100242033,2.06,2646.9,2646.6,0.98851988]
[1727100242034,2.59224608,2647.1,2647.0,0.37784]
[1727100242729,3.2078,2647.3,2647.2,0.37781]
[1727100242730,4.19604608,2647.3,2647.2,0.37781]
[1727100242930,3.2078,2647.3,2647.2,0.37781]
[1727100243129,4.68707881,2647.3,2647.2,0.37781]
[1727100243326,3.2078,2647.3,2647.2,0.37781]
[1727100243527,4.19579956,2647.3,2647.2,0.37781]
[1727100243830,4.19569697,2647.3,2647.2,0.37781]
[1727100244036,4.19566711,2647.3,2647.2,0.37781]
[1727100244424,0.37781,2647.2,2646.9,0.7697]
[1727100244628,0.37781,2647.2,2646.8,0.98851988]
[1727100244629,2.06,2647.0,2646.6,4.19631988]
[1727100244830,0.98784925,2647.1,2646.9,0.37785]
[1727100245036,0.98784925,2647.1,2647.0,0.37784]
[1727100245428,0.98784925,2647.2,2647.1,0.37782]
[1727100245637,3.2078,2647.3,2647.2,0.37781]
[1727100245938,1e-05,2647.4,2647.3,0.3778]
[1727100247237,0.98785925,2647.4,2647.3,0.3778]
[1727100247936,1e-05,2647.4,2647.3,0.3778]
[1727100248137,0.98785925,2647.4,2647.3,0.3778]
[1727100248735,1e-05,2647.4,2647.3,5.0999]
[1727100248934,1e-05,2647.4,2647.3,6.08841988]
[1727100249137,1e-05,2647.4,2647.3,14.71469794]
[1727100249634,1e-05,2647.4,2647.3,14.22062427]
[1727100249833,1e-05,2647.4,2647.3,7.27604368]
[1727100250044,1e-05,2647.4,2647.3,12.28737467]
[1727100250242,1e-05,2647.4,2647.3,13.77011819]
[1727100250540,3.2078,2648.0,2647.6,0.94437]
[1727100250739,3.2078,2648.0,2647.7,0.7873]
[1727100251041,3.2078,2648.0,2647.8,0.7689]
[1727100251537,3.2078,2648.0,2647.9,0.37771]
[1727100251839,3.2078,2648.0,2647.5,0.98849599]
[1727100252142,0.98784925,2647.8,2647.6,0.37775]
[1727100252534,1.77574925,2647.8,2647.6,0.37775]
[1727100252943,1.77574925,2647.8,2647.5,0.37776]
[1727100253140,2.58294925,2647.8,2647.5,0.37776]
[1727100253337,0.98784925,2647.7,2647.5,0.37776]
[1727100253847,0.98784925,2647.7,2647.6,0.37775]
[1727100254736,3.04784925,2647.7,2647.4,0.7689]
[1727100254933,2.06,2647.5,2647.4,0.37778]
[1727100255142,3.04784925,2647.5,2647.3,0.37779]
[1727100255337,0.98784925,2647.4,2647.3,0.37779]
[1727100255940,3.04784925,2647.5,2647.3,0.37779]
[1727100256152,0.98784925,2647.4,2647.0,10.73549599]
[1727100256441,0.98784925,2647.4,2647.2,0.3778]
[1727100256644,0.813,2647.3,2647.2,0.3778]
[1727100256946,0.98784925,2647.5,2647.4,0.37778]
[1727100258043,1.80084925,2647.6,2647.5,0.37777]
[1727100258239,1.80084925,2647.6,2647.4,0.37777]
[1727100258450,0.813,2647.6,2647.4,0.37778]
[1727100258648,3.04815929,2647.5,2647.1,0.98849599]
[1727100258952,3.04815929,2647.5,2647.3,0.37779]
[1727100259451,3.42593929,2647.5,2647.2,0.37781]
[1727100259646,0.98815929,2647.3,2647.2,0.37781]
[1727100260147,0.98754132,2647.4,2647.2,0.3778]
[1727100260339,3.91705881,2647.5,2647.0,13.94329599]
[1727100260340,3.91705881,2647.5,2647.3,0.3778]
[1727100260743,3.91705881,2647.5,2647.4,0.37778]
[1727100261050,3.53927881,2647.5,2647.4,0.37778]
[1727100261446,3.91704881,2647.5,2647.4,0.37778]
[1727100261646,3.54138267,2647.5,2647.4,0.37778]
[1727100261847,2.06,2647.5,2647.4,0.37778]
[1727100262062,0.37779,2647.4,2647.3,0.37779]
[1727100262350,3.58559,2647.4,2647.3,0.37779]
[1727100262544,7.36319,2647.4,2647.3,0.37779]
[1727100262939,6.9854,2647.4,2647.3,0.37779]
[1727100263144,8.84476116,2647.4,2647.3,0.37779]
[1727100263346,0.37781,2647.2,2647.1,0.37781]
[1727100263544,3.91922029,2647.2,2647.1,0.37781]
[1727100263746,3.54141029,2647.2,2647.1,0.37781]
[1727100263944,3.04757242,2647.2,2647.1,0.37781]
[1727100264143,2.8551,2647.2,2647.1,0.37781]
[1727100264344,1.78262225,2647.2,2647.1,0.37781]
[1727100264740,0.7951,2647.2,2647.1,0.37781]
[1727100265347,1.78262225,2647.2,2647.1,0.37781]
[1727100265848,1.78262225,2647.2,2647.0,0.37783]
[1727100265849,0.37782,2647.1,2647.0,0.37783]
[1727100266051,2.28045705,2647.1,2647.0,0.37783]
[1727100266847,6.43587705,2647.1,2647.0,0.37783]
[1727100267048,9.26585705,2647.1,2647.0,0.37783]
[1727100267552,0.98713866,2647.3,2647.2,1.32234]
[1727100267751,4.68885705,2647.5,2647.3,1.3223]
[1727100267752,0.98713866,2647.4,2647.3,1.3223]
[1727100267955,3.2078,2647.5,2647.4,1.32224]
[1727100268154,1.78653866,2647.7,2647.6,0.37775]
[1727100268455,0.98713866,2647.7,2647.6,0.37775]
[1727100268656,0.98713866,2647.7,2647.4,0.94444]
[1727100268657,2.8571,2647.8,2647.7,0.37774]
[1727100268854,3.84452829,2647.8,2647.7,0.37774]
[1727100270050,3.84457282,2647.8,2647.7,0.37774]
[1727100270248,2.8571,2647.8,2647.7,0.37774]
[1727100270461,2.8571,2647.8,2647.3,1.78979599]
[1727100270462,3.8445365,2647.8,2647.3,1.78979599]
[1727100270648,0.9874365,2647.7,2647.3,0.8013]
[1727100270849,0.9874365,2647.7,2647.6,0.37775]
[1727100271359,0.9874365,2647.8,2647.7,0.37774]
[1727100271549,0.9874365,2648.0,2647.5,1.93290599]
[1727100271750,0.9874365,2648.0,2647.9,0.37771]
[1727100273156,3.0474365,2648.0,2647.9,0.37771]
[1727100274762,11.8368,2648.0,2647.3,1.78979599]
[1727100275054,2.06,2647.4,2647.2,0.3778]
[1727100275247,6.25487031,2647.4,2647.2,0.3778]
[1727100275447,1.75998538,2647.4,2647.3,0.3778]
[1727100275661,0.98698538,2647.5,2647.4,0.37778]
[1727100275867,0.98698538,2647.6,2647.5,0.37777]
[1727100276656,1.48060547,2647.7,2647.6,0.37775]
[1727100276849,5.2678,2647.8,2647.7,0.37774]
[1727100276850,4.19491845,2647.8,2647.7,0.37774]
[1727100277561,3.2078,2647.8,2647.7,0.37774]
[1727100278763,4.19491845,2647.8,2647.7,0.37774]
[1727100278952,3.2078,2647.8,2647.7,0.37774]
[1727100279781,3.2078,2647.8,2647.7,1.32209]
[1727100280057,3.2078,2647.8,2647.7,0.37774]
[1727100283152,3.2078,2647.8,2647.5,1.75689599]
[1727100283153,9.0446,2647.8,2647.5,1.75689599]
[1727100283359,2.06,2647.6,2647.4,0.37777]
[1727100283668,2.06,2647.6,2647.1,1.74839599]
[1727100283669,0.37779,2647.4,2647.1,1.5581]
[1727100283857,0.37779,2647.4,2647.1,1.93592]
[1727100283858,3.04706914,2647.4,2647.1,1.93592]
[1727100284061,3.04706914,2647.2,2646.8,0.37787]
[1727100284264,3.04706914,2647.2,2647.1,0.37782]
[1727100284265,0.98706914,2647.2,2647.1,0.37782]
[1727100284466,4.19486914,2647.4,2646.8,1.93314599]
[1727100284771,0.98706914,2647.4,2647.3,0.3778]
[1727100285255,0.98706914,2647.5,2647.4,0.37778]
[1727100285457,0.98706914,2647.5,2647.1,0.7599]
[1727100285666,0.98706914,2647.5,2647.3,0.37779]
[1727100285961,3.54060547,2647.6,2647.2,1.1353]
[1727100285962,0.98706914,2647.4,2647.2,1.1353]
[1727100286267,0.98706914,2647.5,2647.3,0.3778]
[1727100286466,0.98706914,2647.5,2647.4,0.37778]
[1727100286968,0.98706914,2647.6,2647.5,0.37777]
[1727100287163,4.19486914,2647.7,2647.6,0.37775]
[1727100287765,0.98706914,2647.8,2647.7,0.37774]
[1727100287963,0.98706914,2647.9,2647.8,0.37772]
[1727100288169,4.19486914,2648.0,2647.9,0.37771]
[1727100289268,3.2078,2648.0,2647.9,0.37771]
[1727100290267,0.98706914,2648.1,2648.0,0.3777]
[1727100290572,0.98706914,2648.3,2648.2,0.37767]
[1727100290769,0.98706914,2648.4,2648.2,0.37766]
[1727100291069,0.98706914,2648.3,2648.2,0.37766]
[1727100292369,0.98706914,2648.3,2647.8,1.79679599]
[1727100292559,0.98706914,2648.3,2648.2,0.37767]
[1727100292869,0.98739831,2648.3,2648.2,0.37767]
[1727100293065,0.98739831,2648.3,2648.1,0.37767]
[1727100293275,0.98739831,2648.3,2648.2,0.37767]
[1727100294569,1.48060547,2648.4,2648.2,0.37767]
[1727100294765,4.02963,2648.5,2648.2,0.37767]
[1727100294968,0.37764,2648.4,2648.2,0.37767]
[1727100295294,4.02963,2648.5,2648.3,0.37765]
[1727100295869,4.02963,2648.5,2648.4,0.37764]
[1727100296368,7.80563,2648.5,2648.4,0.37764]
[1727100297066,13.428,2648.5,2647.8,1.7526]
[1727100297370,3.2078,2648.3,2647.8,1.7526]
[1727100297670,3.2078,2648.3,2648.2,0.37767]
[1727100298061,3.58545,2648.3,2648.2,0.37767]
[1727100299173,3.2078,2648.3,2648.2,0.37767]
[1727100299373,3.58545,2648.3,2648.2,0.37767]
[1727100299671,3.2078,2648.3,2648.2,0.37767]
[1727100300564,3.2078,2648.3,2648.2,1.32184]
[1727100300966,3.2078,2648.3,2648.2,0.37767]
[1727100301766,1.592,2648.5,2648.4,0.37764]
[1727100302263,0.7939,2648.5,2648.4,0.37764]
[1727100302460,1.48059066,2648.6,2648.5,1.32169]
[1727100302665,1.48059066,2648.6,2648.5,2.94959]
[1727100302870,1.48059066,2648.6,2648.5,5.78152]
[1727100303069,1.48059066,2648.6,2648.5,0.99965513]
[1727100303370,1.48059066,2648.6,2648.4,0.37763]
[1727100303569,2.30339066,2648.6,2648.5,0.37762]
[1727100303869,1.48059066,2648.6,2648.5,0.37762]
[1727100304866,1.48059066,2648.6,2648.5,5.85009]
[1727100305063,1.48059066,2648.6,2648.5,1.13002]
[1727100305271,1.48059066,2648.6,2648.5,0.37762]
[1727100305880,1.48059066,2648.6,2648.5,4.15362]
[1727100306178,1.48059066,2648.6,2648.5,4.93412]
[1727100306474,1.48059066,2648.6,2648.5,1.15812]
[1727100307567,3.2078,2649.0,2648.9,0.37757]
[1727100308071,3.2078,2649.0,2648.4,0.8085]
[1727100308375,0.37763,2648.5,2648.0,0.7805]
[1727100308581,1.5586,2648.4,2648.2,0.37766]
[1727100309076,1.78486821,2648.8,2648.1,2.06]
[1727100309278,1.78486821,2648.8,2648.0,0.7805]
[1727100309279,5.2678,2648.7,2648.0,0.7805]
[1727100309466,5.2678,2648.7,2648.2,0.37766]
[1727100309467,6.25316821,2648.7,2648.2,0.37766]
[1727100309775,3.2078,2648.4,2647.9,8.2392]
[1727100309980,3.9944,2648.3,2647.9,0.7712]
[1727100310172,3.9944,2648.3,2648.0,0.37769]
[1727100311370,6.0544,2648.3,2647.8,0.7525]
[1727100311575,3.2078,2647.9,2647.6,0.37774]
[1727100311777,0.98536821,2648.1,2647.4,4.54003]
[1727100311972,0.98536821,2648.1,2647.4,3.5956]
[1727100312278,1.36305821,2648.1,2647.4,3.5956]
[1727100312478,0.98536821,2648.1,2647.4,3.5956]
[1727100312774,0.98536821,2648.1,2647.9,0.37771]
[1727100312978,6.23119066,2648.2,2648.0,0.3777]
[1727100312979,4.98136821,2648.2,2648.0,0.3777]
[1727100313177,4.98136821,2648.2,2647.5,0.94442]
[1727100313178,1.77196821,2648.3,2648.2,0.37767]
[1727100313379,1.77196821,2648.3,2647.7,0.94434]
[1727100313380,0.98536821,2648.4,2648.3,0.37765]
[1727100313681,1.77356821,2648.7,2648.5,0.37762]
[1727100313877,1.77356821,2648.7,2648.6,0.37761]
[1727100314190,4.68839066,2648.8,2648.6,0.37761]
[1727100314191,3.2078,2648.8,2648.6,0.37761]
[1727100314372,4.19316821,2648.8,2648.7,0.3776]
[1727100314574,3.2078,2648.8,2648.6,0.3776]
[1727100315478,3.2078,2648.8,2648.7,0.3776]
[1727100319282,3.2078,2648.8,2648.3,0.18711788]
[1727100319283,7.36059,2648.8,2648.3,0.18711788]
[1727100319473,7.36059,2648.8,2648.3,0.94413]
[1727100319474,3.2078,2648.8,2648.3,0.94413]
[1727100319780,3.2078,2648.8,2648.3,3.00413]
[1727100319970,3.2078,2648.8,2648.6,0.3776]
[1727100320173,3.2078,2648.8,2648.7,0.3776]
[1727100320678,3.2078,2648.8,2648.3,3.00412]
[1727100320679,3.2078,2648.8,2648.6,0.3776]
[1727100320884,3.2078,2648.8,2648.2,4.7929]
[1727100320885,0.3776,2648.7,2648.4,0.37764]
[1727100321280,1.13591,2648.6,2648.3,0.37764]
[1727100321578,3.2078,2648.5,2648.3,0.37765]
[1727100321780,3.9548,2648.5,2648.3,0.37765]
[1727100321984,0.747,2648.5,2648.4,0.37764]
[1727100322279,1.78806821,2648.9,2648.6,0.3776]
[1727100322480,0.747,2648.9,2648.8,0.37758]
[1727100322783,0.747,2648.9,2648.3,3.18883826]
[1727100322983,0.747,2648.9,2648.4,0.9441]
[1727100323191,0.747,2648.9,2648.8,0.37758]
[1727100323691,3.9661,2649.0,2648.9,0.37757]
[1727100323885,3.9661,2649.0,2648.4,0.9441]
[1727100323886,4.34365,2649.0,2648.4,0.9441]
[1727100324087,4.34365,2649.0,2648.9,0.37757]
[1727100324088,3.9661,2649.0,2648.9,0.37757]
[1727100324483,3.9661,2649.0,2648.8,0.37757]
[1727100324682,4.34366,2649.0,2648.8,0.37757]
[1727100324988,3.9661,2649.0,2648.9,0.37757]
[1727100325182,7.7413,2649.0,2648.9,0.37757]
[1727100325482,8.11886,2649.0,2648.8,0.37757]
[1727100325689,5.32901821,2649.0,2648.8,0.37757]
[1727100326078,5.32901821,2649.0,2648.9,0.37757]
[1727100326280,5.32901821,2649.0,2648.2,2.52927]
[1727100326281,7.50669066,2649.0,2648.2,2.52927]
[1727100326482,4.19335923,2648.7,2648.2,2.52927]
[1727100326683,0.98555923,2648.8,2648.6,0.94403]
[1727100326883,4.19335923,2649.0,2648.8,0.94396]
[1727100327092,3.2078,2649.0,2648.9,0.37757]
[1727100327386,6.25335923,2649.0,2648.6,0.18432465]
[1727100327581,0.3776,2648.7,2648.3,0.8178]
[1727100327782,0.3776,2648.7,2648.6,0.94403]
[1727100327783,3.2078,2648.7,2648.6,0.94403]
[1727100328094,3.2078,2649.0,2648.9,0.37757]
[1727100328484,3.2078,2649.0,2648.9,1.32149]
[1727100328887,3.2078,2649.0,2648.9,0.37757]
[1727100329792,1.97431289,2649.6,2649.0,0.94389]
[1727100329793,0.98555923,2649.6,2649.0,0.94389]
[1727100330092,5.67569112,2650.0,2649.9,0.37742]
[1727100330093,0.088,2650.0,2649.9,0.37742]
[1727100330289,2.99155301,2650.4,2650.3,0.37737]
[1727100330589,1.5133,2650.4,2649.9,2.06]
[1727100330994,1.5133,2650.4,2650.0,0.8033]
[1727100331385,1.5133,2650.4,2650.2,0.37737]
[1727100332194,5.66346,2650.4,2650.0,0.3774]
[1727100332392,5.66346,2650.4,2649.8,5.2678]
[1727100332393,1.5133,2650.4,2649.8,5.2678]
[1727100332687,1.5133,2650.4,2650.2,0.37738]
[1727100332896,1.47825301,2650.7,2650.2,2.06]
[1727100333084,0.088,2651.2,2650.6,5.2678]
[1727100333287,1.51625302,2651.7,2651.6,0.37718]
[1727100333489,3.2078,2651.8,2651.7,0.37717]
[1727100333685,0.088,2652.5,2651.7,2.06]
[1727100333686,0.8207,2652.5,2651.7,2.06]
[1727100333893,0.8207,2652.5,2652.0,0.37712]
[1727100334087,4.5911,2652.5,2651.8,0.37714]
[1727100334296,0.37711,2652.2,2651.6,0.37718]
[1727100334691,3.2078,2652.3,2651.5,2.43719]
[1727100334891,0.37712,2652.1,2651.6,0.37717]
[1727100335290,3.2078,2652.3,2651.6,0.37717]
[1727100335490,0.37711,2652.1,2651.5,2.06]
[1727100335896,3.2078,2652.3,2651.6,0.37717]
[1727100335897,0.37713,2652.0,2651.6,0.37717]
[1727100336098,3.58494,2652.0,2651.6,0.37718]
[1727100336307,3.7712,2651.9,2651.3,3.2078]
[1727100336494,0.7989,2651.8,2651.3,3.2078]
[1727100337012,0.7989,2651.8,2651.5,0.37719]
[1727100337013,1.17605,2651.8,2651.5,0.37719]
[1727100337302,0.7989,2651.8,2651.5,0.37719]
[1727100337506,3.2078,2652.4,2652.3,0.37708]
[1727100337710,3.2078,2652.4,2651.8,2.54]
[1727100338004,3.2078,2652.4,2652.1,0.3771]
[1727100338314,0.94275,2652.2,2651.0,3.2078]
[1727100338608,0.37719,2651.6,2651.0,3.2078]
[1727100338822,0.37715,2651.9,2651.5,0.3772]
[1727100339115,0.815,2651.9,2651.0,3.2078]
[1727100339314,0.7934,2652.1,2651.2,2.54]
[1727100339518,1.17052,2652.1,2651.7,0.37716]
[1727100339708,0.7934,2652.1,2651.6,0.37718]
[1727100339909,3.58493,2652.0,2651.6,0.37718]
[1727100340113,0.37713,2652.0,2651.7,0.37717]
[1727100340414,3.2078,2652.0,2651.4,0.3772]
[1727100340617,3.2078,2652.0,2651.0,3.2078]
[1727100340813,0.37714,2651.9,2651.6,0.37718]
[1727100341319,4.14834,2651.9,2651.6,0.37718]
[1727100341520,4.14836,2651.8,2651.5,0.3772]
[1727100341714,0.37717,2651.7,2651.4,0.3772]
[1727100342016,0.37716,2651.8,2651.5,0.37719]
[1727100342219,0.37716,2651.8,2651.4,0.37721]
[1727100342718,0.7934,2652.1,2651.0,3.2078]
[1727100342719,0.7934,2652.1,2651.8,0.37714]
[1727100343019,0.3771,2652.2,2651.3,0.94307]
[1727100343020,3.985,2652.3,2651.4,0.94303]
[1727100343212,3.2078,2652.3,2651.5,4.2356]
[1727100343411,0.37711,2652.2,2651.8,0.37714]
[1727100343619,0.3771,2652.2,2651.8,0.37714]
[1727100343819,0.37711,2652.1,2651.8,0.37714]
[1727100344120,0.37711,2652.2,2651.9,0.37714]
[1727100344319,3.2078,2652.3,2651.3,3.2078]
[1727100344518,0.37713,2652.0,2651.3,3.2078]
[1727100344818,0.37713,2652.0,2651.6,0.37717]
[1727100345016,0.37726,2651.1,2650.6,3.2078]
[1727100345206,3.2078,2651.2,2650.5,0.8121]
[1727100345411,3.2078,2651.6,2650.6,4.95561]
[1727100345607,0.94301,2651.5,2650.6,0.8045]
[1727100345806,0.37724,2651.3,2650.9,0.37727]
[1727100346016,0.7997,2651.5,2650.6,4.0123]
[1727100346217,1.17691,2651.5,2651.1,0.37724]
[1727100346419,0.37721,2651.4,2650.7,0.94328]
[1727100346721,0.7997,2651.5,2651.3,0.37722]
[1727100346910,0.7954,2651.7,2651.5,0.3772]
[1727100347111,0.7954,2651.7,2651.4,0.3772]
[1727100347308,1.17258,2651.7,2651.4,0.3772]
[1727100347523,0.7954,2651.7,2651.6,0.37718]
[1727100347815,3.9842,2652.2,2651.3,0.94307]
[1727100348118,3.9842,2652.2,2651.4,0.94303]
[1727100348313,4.3613,2652.2,2651.9,0.37713]
[1727100348623,4.36131,2652.2,2651.8,0.37715]
[1727100348818,3.9842,2652.2,2651.5,2.54]
[1727100349318,4.3613,2652.2,2651.9,0.37714]
[1727100349821,3.9842,2652.2,2651.5,6.69078]
[1727100350025,3.9842,2652.2,2652.0,0.37712]
[1727100350324,3.2078,2652.2,2652.1,0.37711]
[1727100351215,3.2078,2652.2,2651.9,0.37713]
[1727100351412,3.2078,2652.2,2651.5,5.7478]
[1727100351620,3.2078,2652.2,2651.7,0.37716]
[1727100351621,0.37713,2652.0,2651.7,0.37716]
[1727100352223,0.37718,2651.7,2651.3,0.7784]
[1727100352430,0.37719,2651.6,2651.3,1.15562]
[1727100352622,0.3772,2651.5,2651.3,0.7784]
[1727100352831,1.68932,2651.8,2651.4,0.3772]
[1727100353016,1.68932,2651.8,2651.5,0.37719]
[1727100353017,1.12357,2651.8,2651.5,0.37719]
[1727100353217,0.7464,2651.8,2651.3,0.7784]
[1727100353413,1.68932,2651.8,2651.3,0.7784]
[1727100353616,4.15075,2651.7,2651.1,0.37725]
[1727100353825,0.37722,2651.4,2651.2,0.37724]
[1727100354220,4.15075,2651.7,2651.1,0.37724]
[1727100354221,0.37723,2651.3,2651.1,0.37724]
[1727100354418,0.37723,2651.3,2651.0,3.2078]
[1727100354726,0.37722,2651.4,2651.2,0.37723]
[1727100354913,0.37722,2651.4,2651.3,0.37723]
[1727100355118,0.37721,2651.5,2651.3,0.37723]
[1727100355313,4.15075,2651.7,2651.3,0.37723]
[1727100355515,0.37723,2651.3,2651.0,3.2078]
[1727100355727,0.37721,2651.5,2651.0,3.2078]
[1727100356027,0.94296,2651.6,2651.2,0.37723]
[1727100356216,0.37722,2651.4,2651.2,0.37723]
[1727100356413,0.37722,2651.4,2651.3,0.37723]
[1727100356618,3.2078,2651.7,2651.0,3.2078]
[1727100356820,0.37719,2651.6,2651.5,0.37719]
[1727100357222,0.3772,2651.5,2651.4,0.3772]
[1727100357621,4.15074,2651.7,2651.0,3.2078]
[1727100357924,4.15074,2651.7,2650.8,3.48323]
[1727100357925,0.94296,2651.6,2650.8,3.48323]
[1727100358229,0.37722,2651.4,2651.2,0.37723]
[1727100358428,0.37722,2651.4,2651.3,0.37723]
[1727100358648,3.2078,2651.7,2651.4,0.3772]
[1727100358649,0.3772,2651.5,2651.4,0.3772]
[1727100358925,1.68932,2651.8,2651.0,0.94317]
[1727100358926,1.12356,2651.8,2651.7,0.37717]
[1727100359121,0.37717,2651.7,2651.6,0.37717]
[1727100360127,1.12356,2651.8,2651.7,0.37717]
[1727100360528,3.2078,2652.3,2651.6,0.94295]
[1727100360825,0.37711,2652.2,2652.1,0.37711]
[1727100361022,0.3771,2652.2,2652.1,0.37711]
[1727100361221,3.2078,2652.3,2651.7,0.7601]
[1727100361418,3.2078,2652.3,2652.1,0.37711]
[1727100361627,3.2078,2652.3,2652.2,0.3771]
[1727100361822,3.2078,2652.3,2652.1,0.3771]
[1727100362024,3.2078,2652.3,2652.2,0.3771]
[1727100362224,6.9782,2652.3,2651.7,0.7601]
[1727100362427,4.15055,2652.3,2651.7,0.7601]
[1727100362631,3.2078,2652.3,2651.7,0.7601]
[1727100363129,0.37712,2652.1,2651.9,0.37713]
[1727100363327,0.37712,2652.1,2651.6,3.2078]
[1727100363328,3.2078,2652.0,2651.6,3.2078]
[1727100363532,3.9348,2652.0,2651.6,3.2078]
[1727100363835,3.9348,2652.0,2651.0,1.71376]
[1727100363836,0.3772,2651.5,2651.3,8.36762]
[1727100364127,0.37719,2651.6,2651.4,0.37721]
[1727100364328,0.3772,2651.5,2651.3,1.10862]
[1727100364928,0.37717,2651.7,2651.5,0.37719]
[1727100365139,0.3772,2651.5,2651.3,1.10862]
[1727100365629,0.94293,2651.7,2651.3,1.10863]
[1727100365930,0.94293,2651.7,2651.3,0.37723]
[1727100365931,0.37721,2651.5,2651.3,0.37723]
[1727100366133,3.2078,2651.8,2651.1,3.2078]
[1727100366328,0.37717,2651.7,2651.5,0.37719]
[1727100366521,3.2078,2651.8,2651.3,0.37721]